[Event "GrandPrix_29.05"]
[Site "Chess.com"]
[Date "2020.05.29"]
[Round "4"]
[White "Koksik_13"]
[Black "TheFireChess"]
[Result "0-1"]
[WhiteElo "2059"]
[BlackElo "2220"]
[TimeControl "600+2"]
[EndTime "10:50:10 PDT"]
[Termination "TheFireChess won by resignation"]

1. d4 {[%clk 0:10:01.9]} 1... d6 {[%clk 0:09:59.3]} 2. Nc3 {[%clk 0:10:02.3]}
2... c6 {[%clk 0:09:57.8]} 3. e4 {[%clk 0:10:02.8]} 3... e5 {[%clk 0:09:57.3]}
4. Nf3 {[%clk 0:10:01.8]} 4... Nd7 {[%clk 0:09:55.8]} 5. Bc4 {[%clk 0:10:02.1]}
5... Be7 {[%clk 0:09:53.6]} 6. O-O {[%clk 0:10:02.1]} 6... Ngf6 {[%clk
0:09:54.1]} 7. Qe2 {[%clk 0:10:01.3]} 7... O-O {[%clk 0:09:54.3]} 8. Rd1 {[%clk
0:10:01.9]} 8... Qc7 {[%clk 0:09:54.5]} 9. Bg5 {[%clk 0:10:02.3]} 9... h6 {[%clk
0:09:54.7]} 10. Bh4 {[%clk 0:10:03.3]} 10... Re8 {[%clk 0:09:52.4]} 11. dxe5
{[%clk 0:10:03.4]} 11... dxe5 {[%clk 0:09:52.3]} 12. Bg3 {[%clk 0:10:00.1]}
12... b5 {[%clk 0:09:43.5]} 13. Bb3 {[%clk 0:09:59.8]} 13... a5 {[%clk
0:09:43.1]} 14. a4 {[%clk 0:09:59.8]} 14... b4 {[%clk 0:09:42.5]} 15. Nb1 {[%clk
0:09:10.9]} 15... Ba6 {[%clk 0:09:24.6]} 16. Bc4 {[%clk 0:09:11.5]} 16... Bxc4
{[%clk 0:09:25.5]} 17. Qxc4 {[%clk 0:09:13.4]} 17... Nh5 {[%clk 0:08:43.3]} 18.
Nbd2 {[%clk 0:09:01.9]} 18... Nf4 {[%clk 0:08:22.5]} 19. Nf1 {[%clk 0:08:56.8]}
19... Nb6 {[%clk 0:08:13.8]} 20. Qb3 {[%clk 0:08:55.9]} 20... c5 {[%clk
0:08:09.5]} 21. c4 {[%clk 0:08:53.9]} 21... Ne2+ {[%clk 0:07:23]} 22. Kh1 {[%clk
0:08:53.7]} 22... Bd6 {[%clk 0:07:24.2]} 23. Ne3 {[%clk 0:08:54.1]} 23... Nd4
{[%clk 0:07:18.1]} 24. Nxd4 {[%clk 0:08:53.4]} 24... exd4 {[%clk 0:07:09.1]} 25.
Bxd6 {[%clk 0:08:36.7]} 25... Qxd6 {[%clk 0:07:01.4]} 26. Nf5 {[%clk 0:08:38.6]}
26... Qf4 {[%clk 0:06:18.6]} 27. f3 {[%clk 0:08:35.4]} 27... g6 {[%clk
0:06:08.2]} 28. Ng3 {[%clk 0:08:26.1]} 28... h5 {[%clk 0:05:57.1]} 29. Qd3
{[%clk 0:08:23.5]} 29... h4 {[%clk 0:05:55.5]} 30. Ne2 {[%clk 0:08:24.5]} 30...
Qh6 {[%clk 0:05:56.8]} 31. b3 {[%clk 0:08:24.2]} 31... Nd7 {[%clk 0:05:43.3]}
32. f4 {[%clk 0:08:19.8]} 32... Nf6 {[%clk 0:05:20.8]} 33. e5 {[%clk 0:08:20.4]}
33... Ng4 {[%clk 0:05:21.8]} 34. Qf3 {[%clk 0:08:22]} 34... Ne3 {[%clk
0:05:14.4]} 35. Rd3 {[%clk 0:08:23.2]} 35... Nf5 {[%clk 0:05:13.7]} 36. Kg1
{[%clk 0:08:23]} 36... Qh5 {[%clk 0:04:57.6]} 37. Qxh5 {[%clk 0:08:22.9]} 37...
gxh5 {[%clk 0:04:59.5]} 38. Kf2 {[%clk 0:08:24.2]} 38... f6 {[%clk 0:04:40.1]}
39. exf6 {[%clk 0:08:20.4]} 39... Kf7 {[%clk 0:04:41.2]} 40. Ng1 {[%clk
0:08:21.9]} 40... Re4 {[%clk 0:04:32.4]} 41. Nf3 {[%clk 0:08:20.5]} 41... Kxf6
{[%clk 0:04:25.5]} 42. g3 {[%clk 0:08:18.7]} 42... Rae8 {[%clk 0:04:23.1]} 43.
Ne5 {[%clk 0:08:14.1]} 43... hxg3+ {[%clk 0:04:13.1]} 44. hxg3 {[%clk 0:08:16]}
44... h4 {[%clk 0:03:58.5]} 45. Kf3 {[%clk 0:08:17.1]} 45... Nxg3 {[%clk
0:03:52.1]} 46. Rg1 {[%clk 0:08:18.2]} 46... Kf5 {[%clk 0:03:42.5]} 47. Kg2
{[%clk 0:07:54]} 47... Rxf4 {[%clk 0:03:36.9]} 48. Nf7 {[%clk 0:07:55.3]} 48...
Kg4 {[%clk 0:03:10.4]} 49. Nh6+ {[%clk 0:07:43.8]} 49... Kg5 {[%clk 0:03:09.3]}
50. Kh3 {[%clk 0:07:43]} 50... Kxh6 {[%clk 0:03:07.4]} 0-1

[Event "GrandPrix_29.05"]
[Site "Chess.com"]
[Date "2020.05.29"]
[Round "4"]
[White "Poghosyan_Suren"]
[Black "Dolphin_2010"]
[Result "0-1"]
[WhiteElo "2126"]
[BlackElo "2143"]
[TimeControl "600+2"]
[EndTime "10:50:17 PDT"]
[Termination "Dolphin_2010 won by resignation"]

1. d4 {[%clk 0:09:59.7]} 1... c6 {[%clk 0:09:57.6]} 2. c4 {[%clk 0:09:57.3]}
2... d5 {[%clk 0:09:59.5]} 3. Nf3 {[%clk 0:09:58.2]} 3... Nf6 {[%clk 0:09:59.6]}
4. Nc3 {[%clk 0:09:59.2]} 4... dxc4 {[%clk 0:10:00.1]} 5. a4 {[%clk 0:10:00.7]}
5... Bf5 {[%clk 0:09:59.8]} 6. Ne5 {[%clk 0:10:01.4]} 6... Nbd7 {[%clk
0:10:00.6]} 7. Nxc4 {[%clk 0:10:02.3]} 7... Qc7 {[%clk 0:10:01.5]} 8. g3 {[%clk
0:10:02.3]} 8... e5 {[%clk 0:10:02.8]} 9. dxe5 {[%clk 0:09:49.2]} 9... Nxe5
{[%clk 0:10:04.7]} 10. Bf4 {[%clk 0:09:50.1]} 10... Nfd7 {[%clk 0:09:59.5]} 11.
Qc1 {[%clk 0:09:50.4]} 11... f6 {[%clk 0:09:42]} 12. a5 {[%clk 0:09:25.4]} 12...
g5 {[%clk 0:09:34.1]} 13. Nxe5 {[%clk 0:09:25.4]} 13... Nxe5 {[%clk 0:09:21.1]}
14. Bxe5 {[%clk 0:09:18.8]} 14... Qxe5 {[%clk 0:09:23]} 15. a6 {[%clk
0:09:19.2]} 15... b5 {[%clk 0:08:47.4]} 16. Bg2 {[%clk 0:09:17.7]} 16... Rc8
{[%clk 0:08:46.4]} 17. O-O {[%clk 0:09:07]} 17... Bc5 {[%clk 0:08:31.5]} 18. e4
{[%clk 0:07:54.5]} 18... Be6 {[%clk 0:08:20.8]} 19. Kh1 {[%clk 0:07:52.9]} 19...
g4 {[%clk 0:08:17.8]} 20. Qh6 {[%clk 0:06:12.5]} 20... Bf8 {[%clk 0:07:48.5]}
21. Qe3 {[%clk 0:06:09.8]} 21... h5 {[%clk 0:06:54.9]} 22. Qxa7 {[%clk
0:05:18.4]} 22... h4 {[%clk 0:06:52.2]} 23. Qb7 {[%clk 0:03:55.9]} 23... hxg3
{[%clk 0:06:33.5]} 24. a7 {[%clk 0:03:27.8]} 24... gxf2 {[%clk 0:05:43.1]} 25.
h3 {[%clk 0:03:23.6]} 25... Bd6 {[%clk 0:05:41.6]} 0-1

[Event "GrandPrix_29.05"]
[Site "Chess.com"]
[Date "2020.05.29"]
[Round "4"]
[White "DaVinci81"]
[Black "Bosiocic"]
[Result "0-1"]
[WhiteElo "2475"]
[BlackElo "2752"]
[TimeControl "600+2"]
[EndTime "10:50:29 PDT"]
[Termination "Bosiocic won by checkmate"]

1. d4 {[%clk 0:10:01.9]} 1... d6 {[%clk 0:10:00.1]} 2. e4 {[%clk 0:09:58.4]}
2... Nf6 {[%clk 0:09:59.1]} 3. Bd3 {[%clk 0:09:59.2]} 3... e5 {[%clk 0:09:59.1]}
4. c3 {[%clk 0:09:57.6]} 4... d5 {[%clk 0:10:00.4]} 5. dxe5 {[%clk 0:09:55.3]}
5... Nxe4 {[%clk 0:10:01.1]} 6. Nf3 {[%clk 0:09:53.7]} 6... Nc6 {[%clk
0:09:49.1]} 7. O-O {[%clk 0:09:35.2]} 7... Bg4 {[%clk 0:09:45.5]} 8. Be2 {[%clk
0:08:00.9]} 8... Bc5 {[%clk 0:09:31.6]} 9. b4 {[%clk 0:07:37]} 9... Bb6 {[%clk
0:09:28.7]} 10. b5 {[%clk 0:07:29.5]} 10... Ne7 {[%clk 0:08:41.3]} 11. h3 {[%clk
0:06:51]} 11... Bh5 {[%clk 0:08:32]} 12. g4 {[%clk 0:06:44.1]} 12... Bg6 {[%clk
0:08:32]} 13. Nd4 {[%clk 0:06:43.3]} 13... c5 {[%clk 0:08:17.4]} 14. bxc6 {[%clk
0:06:38.5]} 14... Nxc6 {[%clk 0:08:17.9]} 15. Be3 {[%clk 0:05:28.2]} 15... Nxe5
{[%clk 0:08:07]} 16. Kg2 {[%clk 0:03:22.7]} 16... h5 {[%clk 0:07:30.6]} 17. Rh1
{[%clk 0:03:01.7]} 17... Qh4 {[%clk 0:07:14.3]} 18. Qa4+ {[%clk 0:02:40.4]}
18... Kf8 {[%clk 0:07:04.7]} 19. Nd2 {[%clk 0:02:30.2]} 19... Nxd2 {[%clk
0:06:34.1]} 20. Bxd2 {[%clk 0:02:29.7]} 20... hxg4 {[%clk 0:06:26.2]} 21. hxg4
{[%clk 0:02:25.9]} 21... Be4+ {[%clk 0:06:26.2]} 22. f3 {[%clk 0:02:23.7]} 22...
Qxg4+ {[%clk 0:06:24.4]} 23. Kf2 {[%clk 0:02:23.7]} 23... Nd3+ {[%clk
0:06:25.2]} 24. Bxd3 {[%clk 0:02:13.4]} 24... Qxf3+ {[%clk 0:06:25.5]} 25. Kg1
{[%clk 0:02:12]} 25... Rxh1# {[%clk 0:06:25.1]} 0-1

[Event "GrandPrix_29.05"]
[Site "Chess.com"]
[Date "2020.05.29"]
[Round "4"]
[White "nurgyulsalimova"]
[Black "Andrjywa"]
[Result "1/2-1/2"]
[WhiteElo "2213"]
[BlackElo "2093"]
[TimeControl "600+2"]
[EndTime "10:50:36 PDT"]
[Termination "Game drawn by repetition"]

1. d4 {[%clk 0:10:01.9]} 1... c5 {[%clk 0:09:57.5]} 2. d5 {[%clk 0:10:01.9]}
2... Nf6 {[%clk 0:09:58.2]} 3. Nc3 {[%clk 0:10:02.6]} 3... e6 {[%clk 0:09:57.8]}
4. e4 {[%clk 0:10:01.1]} 4... b6 {[%clk 0:09:57.9]} 5. Nf3 {[%clk 0:09:47.7]}
5... Bb7 {[%clk 0:09:57.1]} 6. Be2 {[%clk 0:09:43.9]} 6... exd5 {[%clk
0:09:56.1]} 7. exd5 {[%clk 0:09:44.4]} 7... d6 {[%clk 0:09:55.7]} 8. O-O {[%clk
0:09:44.3]} 8... Be7 {[%clk 0:09:56.1]} 9. Bf4 {[%clk 0:09:10.3]} 9... O-O
{[%clk 0:09:55.4]} 10. Re1 {[%clk 0:09:07.1]} 10... Na6 {[%clk 0:09:41]} 11. Bc4
{[%clk 0:08:33.7]} 11... Nc7 {[%clk 0:09:39.8]} 12. a4 {[%clk 0:08:32.4]} 12...
a6 {[%clk 0:09:29.6]} 13. Qd3 {[%clk 0:07:42.1]} 13... b5 {[%clk 0:08:17.7]} 14.
axb5 {[%clk 0:07:41.9]} 14... axb5 {[%clk 0:08:19.6]} 15. Rxa8 {[%clk
0:07:18.8]} 15... Bxa8 {[%clk 0:08:14.9]} 16. Nxb5 {[%clk 0:06:47.4]} 16... Nxb5
{[%clk 0:08:14.9]} 17. Bxb5 {[%clk 0:06:47.9]} 17... Nxd5 {[%clk 0:08:15.8]} 18.
Bg3 {[%clk 0:06:30.8]} 18... Nb4 {[%clk 0:07:55]} 19. Qe2 {[%clk 0:06:29.2]}
19... Bf6 {[%clk 0:07:37.9]} 20. c3 {[%clk 0:06:29.2]} 20... Nd5 {[%clk
0:07:23.1]} 21. Rd1 {[%clk 0:06:13.1]} 21... Be7 {[%clk 0:05:44.9]} 22. Re1
{[%clk 0:04:01.7]} 22... Bf6 {[%clk 0:05:31.5]} 23. Rd1 {[%clk 0:03:47.8]} 23...
Be7 {[%clk 0:04:41.2]} 24. Re1 {[%clk 0:03:44.8]} 24... Bf6 {[%clk 0:04:41.7]}
1/2-1/2

[Event "GrandPrix_29.05"]
[Site "Chess.com"]
[Date "2020.05.29"]
[Round "4"]
[White "nikosgal"]
[Black "Nuvas"]
[Result "1-0"]
[WhiteElo "2525"]
[BlackElo "2238"]
[TimeControl "600+2"]
[EndTime "10:50:59 PDT"]
[Termination "nikosgal won by resignation"]

1. d4 {[%clk 0:10:01.7]} 1... d5 {[%clk 0:10:00.2]} 2. c4 {[%clk 0:10:02]} 2...
c6 {[%clk 0:10:01.2]} 3. Nc3 {[%clk 0:09:59.3]} 3... Nf6 {[%clk 0:10:01.5]} 4.
cxd5 {[%clk 0:09:59.8]} 4... cxd5 {[%clk 0:10:01.7]} 5. Bf4 {[%clk 0:10:01.5]}
5... Nc6 {[%clk 0:10:01.2]} 6. e3 {[%clk 0:10:02]} 6... Bg4 {[%clk 0:10:02.1]}
7. Qb3 {[%clk 0:09:59.2]} 7... Na5 {[%clk 0:10:03]} 8. Qa4+ {[%clk 0:09:55.7]}
8... Bd7 {[%clk 0:10:04]} 9. Bb5 {[%clk 0:09:56.7]} 9... Nc6 {[%clk 0:10:02.7]}
10. Nf3 {[%clk 0:09:48.2]} 10... a6 {[%clk 0:09:46.6]} 11. Bxc6 {[%clk
0:09:48.7]} 11... Bxc6 {[%clk 0:09:47.3]} 12. Qb3 {[%clk 0:09:50]} 12... Nh5
{[%clk 0:07:02.8]} 13. Bg5 {[%clk 0:09:49.8]} 13... h6 {[%clk 0:07:02.2]} 14.
Bh4 {[%clk 0:09:47.8]} 14... g5 {[%clk 0:07:02.4]} 15. Bg3 {[%clk 0:09:48.8]}
15... Nxg3 {[%clk 0:07:03.8]} 16. hxg3 {[%clk 0:09:50]} 16... Bg7 {[%clk
0:07:05.1]} 17. Ne5 {[%clk 0:09:46.8]} 17... Bxe5 {[%clk 0:05:16.8]} 18. dxe5
{[%clk 0:09:48.7]} 18... Qc7 {[%clk 0:05:02.2]} 19. f4 {[%clk 0:09:39.1]} 19...
gxf4 {[%clk 0:04:57]} 20. gxf4 {[%clk 0:09:41]} 20... O-O-O {[%clk 0:04:58]} 21.
O-O-O {[%clk 0:09:36.6]} 21... Kb8 {[%clk 0:04:40.9]} 22. Kb1 {[%clk 0:09:37]}
22... e6 {[%clk 0:04:41.4]} 23. Ne2 {[%clk 0:09:35.2]} 23... d4 {[%clk
0:04:36.2]} 24. Nxd4 {[%clk 0:09:28.2]} 24... Bxg2 {[%clk 0:04:36.9]} 25. Rhg1
{[%clk 0:08:58.5]} 25... Be4+ {[%clk 0:04:37.6]} 26. Ka1 {[%clk 0:08:59.6]}
26... Rc8 {[%clk 0:04:38.1]} 27. a3 {[%clk 0:08:55.7]} 27... h5 {[%clk
0:04:34.1]} 28. Rg7 {[%clk 0:08:55.8]} 28... Qc1+ {[%clk 0:03:58.4]} 29. Ka2
{[%clk 0:08:45.5]} 29... Bd5 {[%clk 0:03:57.6]} 30. Rxc1 {[%clk 0:08:43.4]}
30... Rxc1 {[%clk 0:03:58.8]} 31. Qxd5 {[%clk 0:08:41.6]} 31... exd5 {[%clk
0:03:59.8]} 32. Rxf7 {[%clk 0:08:43.2]} 32... h4 {[%clk 0:04:00.6]} 33. e6
{[%clk 0:08:44.3]} 33... h3 {[%clk 0:04:00]} 34. Nf3 {[%clk 0:08:44.4]} 34... h2
{[%clk 0:03:53.5]} 35. Nxh2 {[%clk 0:08:11.6]} 35... Rxh2 {[%clk 0:03:55.4]} 36.
e7 {[%clk 0:08:10.1]} 36... Rh8 {[%clk 0:03:55.8]} 37. f5 {[%clk 0:08:06.3]}
37... Kc8 {[%clk 0:01:09.7]} 38. Rf8+ {[%clk 0:08:01.5]} 38... Kd7 {[%clk
0:01:10.8]} 39. e8=Q+ {[%clk 0:08:02.1]} 1-0

[Event "GrandPrix_29.05"]
[Site "Chess.com"]
[Date "2020.05.29"]
[Round "4"]
[White "weplaychess09"]
[Black "PlayChessSimple"]
[Result "0-1"]
[WhiteElo "2091"]
[BlackElo "2262"]
[TimeControl "600+2"]
[EndTime "10:51:07 PDT"]
[Termination "PlayChessSimple won by resignation"]

1. d4 {[%clk 0:10:01.9]} 1... e6 {[%clk 0:09:55.1]} 2. c4 {[%clk 0:10:03.3]}
2... f5 {[%clk 0:09:48.3]} 3. Nc3 {[%clk 0:10:04]} 3... Nf6 {[%clk 0:09:48.8]}
4. e3 {[%clk 0:10:00.9]} 4... g6 {[%clk 0:09:48.5]} 5. Bd3 {[%clk 0:10:01.6]}
5... Bg7 {[%clk 0:09:48.9]} 6. Nge2 {[%clk 0:10:01.9]} 6... O-O {[%clk 0:09:50]}
7. O-O {[%clk 0:10:02.7]} 7... d6 {[%clk 0:09:51.5]} 8. Qc2 {[%clk 0:09:55.2]}
8... e5 {[%clk 0:09:49.6]} 9. f3 {[%clk 0:09:55.3]} 9... c5 {[%clk 0:09:33.7]}
10. a3 {[%clk 0:09:33.1]} 10... Nc6 {[%clk 0:09:14.4]} 11. d5 {[%clk 0:09:30.9]}
11... Ne7 {[%clk 0:09:15.2]} 12. b4 {[%clk 0:09:27.9]} 12... e4 {[%clk
0:08:53.1]} 13. fxe4 {[%clk 0:09:26.7]} 13... fxe4 {[%clk 0:08:52.9]} 14. Bxe4
{[%clk 0:09:27.6]} 14... Nxe4 {[%clk 0:08:52.5]} 15. Rxf8+ {[%clk 0:09:22.4]}
15... Qxf8 {[%clk 0:08:49.9]} 16. Qxe4 {[%clk 0:09:23.3]} 16... Bf5 {[%clk
0:08:36.8]} 17. Qf4 {[%clk 0:08:53.1]} 17... Bd3 {[%clk 0:08:33.4]} 18. Ra2
{[%clk 0:08:43]} 18... Be5 {[%clk 0:07:25]} 19. Qxf8+ {[%clk 0:08:37.1]} 19...
Rxf8 {[%clk 0:07:25.1]} 20. Rd2 {[%clk 0:07:43.7]} 20... Bxc4 {[%clk 0:07:19.1]}
21. Bb2 {[%clk 0:07:40.9]} 21... Bxc3 {[%clk 0:07:05.5]} 22. Bxc3 {[%clk
0:07:39]} 22... Nxd5 {[%clk 0:07:06.6]} 23. h3 {[%clk 0:07:32.6]} 23... Nxe3
{[%clk 0:06:48.7]} 24. Ng3 {[%clk 0:07:29.8]} 24... Nd5 {[%clk 0:06:17.4]} 25.
Ne4 {[%clk 0:07:18.9]} 25... Rf4 {[%clk 0:05:17.7]} 26. Rxd5 {[%clk 0:07:07.4]}
26... Rf1+ {[%clk 0:05:10.6]} 27. Kh2 {[%clk 0:07:06.7]} 27... Bxd5 {[%clk
0:05:11.1]} 28. Nf6+ {[%clk 0:07:07.8]} 28... Rxf6 {[%clk 0:04:53.9]} 29. Bxf6
{[%clk 0:07:07.9]} 29... Kf7 {[%clk 0:04:52.4]} 30. Bc3 {[%clk 0:07:01.4]} 30...
Be4 {[%clk 0:04:40.1]} 31. g4 {[%clk 0:06:55.2]} 31... Ke6 {[%clk 0:04:40.3]}
32. Kg3 {[%clk 0:06:56.2]} 32... Kd5 {[%clk 0:04:34.3]} 33. Kf4 {[%clk
0:06:56.4]} 33... Bg2 {[%clk 0:04:35.1]} 34. h4 {[%clk 0:06:56.8]} 34... Kc4
{[%clk 0:04:28.8]} 35. Be1 {[%clk 0:06:49.6]} 35... b6 {[%clk 0:04:21.5]} 36. h5
{[%clk 0:06:39.9]} 36... gxh5 {[%clk 0:04:19.7]} 37. gxh5 {[%clk 0:06:39.3]}
37... d5 {[%clk 0:04:20.3]} 38. bxc5 {[%clk 0:06:39.9]} 38... bxc5 {[%clk
0:04:20.8]} 39. Ke3 {[%clk 0:06:39.9]} 39... d4+ {[%clk 0:04:16.3]} 40. Kd2
{[%clk 0:06:40.8]} 40... Kd5 {[%clk 0:04:10.5]} 41. Bf2 {[%clk 0:06:32.6]} 41...
c4 {[%clk 0:04:10.3]} 42. h6 {[%clk 0:06:25.2]} 42... c3+ {[%clk 0:04:08.5]} 43.
Kc2 {[%clk 0:06:20.4]} 43... Kc4 {[%clk 0:04:07.1]} 44. Kc1 {[%clk 0:06:07]}
44... d3 {[%clk 0:04:01.5]} 45. Be3 {[%clk 0:05:59.8]} 45... d2+ {[%clk
0:03:55.5]} 46. Bxd2 {[%clk 0:06:01.2]} 46... cxd2+ {[%clk 0:03:56.6]} 47. Kxd2
{[%clk 0:06:02.9]} 47... Kb3 {[%clk 0:03:57.5]} 48. Kd3 {[%clk 0:05:58.1]} 48...
Kxa3 {[%clk 0:03:53.3]} 49. Kc3 {[%clk 0:05:59.3]} 49... a5 {[%clk 0:03:51]} 0-1

[Event "GrandPrix_29.05"]
[Site "Chess.com"]
[Date "2020.05.29"]
[Round "4"]
[White "arminmusovic"]
[Black "BogdanDeac"]
[Result "0-1"]
[WhiteElo "2255"]
[BlackElo "2255"]
[TimeControl "600+2"]
[EndTime "10:51:10 PDT"]
[Termination "BogdanDeac won by resignation"]

1. a3 {[%clk 0:10:01.9]} 1... e5 {[%clk 0:09:58.2]} 2. Nc3 {[%clk 0:10:03.1]}
2... d5 {[%clk 0:09:55]} 3. d4 {[%clk 0:10:03.9]} 3... e4 {[%clk 0:09:42.9]} 4.
Bf4 {[%clk 0:10:04.9]} 4... c6 {[%clk 0:09:38.5]} 5. e3 {[%clk 0:10:03.4]} 5...
Nf6 {[%clk 0:09:37.5]} 6. Nge2 {[%clk 0:10:04.5]} 6... Na6 {[%clk 0:09:37.1]} 7.
h3 {[%clk 0:10:03.1]} 7... Nc7 {[%clk 0:09:37.9]} 8. Bh2 {[%clk 0:09:48.2]} 8...
Be7 {[%clk 0:09:36.9]} 9. Nf4 {[%clk 0:09:48.6]} 9... O-O {[%clk 0:09:37.4]} 10.
g4 {[%clk 0:09:46.9]} 10... Bd6 {[%clk 0:09:35.2]} 11. g5 {[%clk 0:09:26.2]}
11... Nfe8 {[%clk 0:09:35]} 12. h4 {[%clk 0:09:21.7]} 12... Ne6 {[%clk
0:09:35.7]} 13. Nxe6 {[%clk 0:09:03.3]} 13... fxe6 {[%clk 0:09:35.4]} 14. Bh3
{[%clk 0:08:45.5]} 14... Bxh2 {[%clk 0:09:31.1]} 15. Rxh2 {[%clk 0:08:47.4]}
15... Qd6 {[%clk 0:09:32]} 16. Rg2 {[%clk 0:08:47.6]} 16... e5 {[%clk
0:09:32.4]} 17. Bxc8 {[%clk 0:08:49]} 17... Rxc8 {[%clk 0:09:32.1]} 18. Qg4
{[%clk 0:08:43.8]} 18... Rc7 {[%clk 0:09:26.8]} 19. O-O-O {[%clk 0:08:44.7]}
19... Rcf7 {[%clk 0:09:15.4]} 20. Rd2 {[%clk 0:07:56.4]} 20... exd4 {[%clk
0:09:00.3]} 21. exd4 {[%clk 0:07:58.3]} 21... Rf4 {[%clk 0:08:41.8]} 22. Qg3
{[%clk 0:07:55.7]} 22... Rf3 {[%clk 0:08:42.6]} 23. Qg4 {[%clk 0:07:48.4]} 23...
Qf4 {[%clk 0:08:22.5]} 24. Qe6+ {[%clk 0:07:33.8]} 24... Qf7 {[%clk 0:08:23.2]}
25. Qg4 {[%clk 0:07:26.2]} 25... Nd6 {[%clk 0:08:15.9]} 26. Nd1 {[%clk
0:07:19.4]} 26... Nc4 {[%clk 0:08:12.4]} 27. Re2 {[%clk 0:07:20.9]} 27... Rf4
{[%clk 0:07:43.9]} 28. Qg3 {[%clk 0:07:19.2]} 28... Qh5 {[%clk 0:07:43.5]} 29.
g6 {[%clk 0:07:09.2]} 29... h6 {[%clk 0:07:28.6]} 30. Re1 {[%clk 0:07:10.1]}
30... Qxh4 {[%clk 0:07:07.2]} 31. Qb3 {[%clk 0:07:10.8]} 31... Qe7 {[%clk
0:07:07.8]} 32. Rh1 {[%clk 0:06:35.8]} 32... R8f6 {[%clk 0:06:49.4]} 33. Rh5
{[%clk 0:06:13.4]} 33... Rf3 {[%clk 0:06:36.6]} 34. Qb4 {[%clk 0:05:56.2]} 34...
Qxb4 {[%clk 0:06:25]} 35. axb4 {[%clk 0:05:58.1]} 35... a6 {[%clk 0:06:25.9]}
36. b3 {[%clk 0:05:57.8]} 36... Nd6 {[%clk 0:06:26.4]} 37. Re5 {[%clk 0:05:57]}
37... Kf8 {[%clk 0:06:25.4]} 38. Kd2 {[%clk 0:05:47.4]} 38... Nf5 {[%clk
0:06:21.6]} 39. c3 {[%clk 0:05:44.3]} 39... Nh4 {[%clk 0:06:18]} 40. Rg4 {[%clk
0:05:32]} 40... Nxg6 {[%clk 0:06:12.7]} 41. Rh5 {[%clk 0:05:32]} 41... Nf4
{[%clk 0:06:13.6]} 42. Rh2 {[%clk 0:05:31.4]} 42... Nd3 {[%clk 0:06:13.8]} 43.
Ke2 {[%clk 0:05:29.3]} 43... g5 {[%clk 0:06:06]} 44. Rg1 {[%clk 0:05:18.7]}
44... Kg7 {[%clk 0:06:03.8]} 45. Rf1 {[%clk 0:05:18]} 45... Kg6 {[%clk
0:06:03.6]} 46. Ne3 {[%clk 0:05:18.9]} 46... h5 {[%clk 0:06:03.3]} 47. Nd1
{[%clk 0:05:06.1]} 47... h4 {[%clk 0:06:00.7]} 48. Rg1 {[%clk 0:05:05.5]} 48...
Kh5 {[%clk 0:05:59.8]} 49. Rgh1 {[%clk 0:05:03]} 49... b6 {[%clk 0:05:54.1]} 50.
Rg1 {[%clk 0:05:01.9]} 50... g4 {[%clk 0:05:51]} 51. Rgh1 {[%clk 0:04:58.9]}
51... h3 {[%clk 0:05:50.9]} 52. Rg1 {[%clk 0:05:00.5]} 52... Kh4 {[%clk
0:05:47.8]} 53. Rgh1 {[%clk 0:05:01.8]} 53... a5 {[%clk 0:05:40]} 54. bxa5
{[%clk 0:04:58.2]} 54... bxa5 {[%clk 0:05:41.9]} 55. Rg1 {[%clk 0:04:54.7]}
55... Rf7 {[%clk 0:05:42.9]} 56. Rgh1 {[%clk 0:04:53.3]} 56... Rb7 {[%clk
0:05:43.5]} 57. Ne3 {[%clk 0:04:51]} 57... Rxb3 {[%clk 0:05:42.9]} 58. Ng2+
{[%clk 0:04:50.4]} 58... Kg5 {[%clk 0:05:42.5]} 59. Ne1 {[%clk 0:04:48.9]} 0-1

[Event "GrandPrix_29.05"]
[Site "Chess.com"]
[Date "2020.05.29"]
[Round "4"]
[White "bratkoo"]
[Black "Belka1989"]
[Result "0-1"]
[WhiteElo "2015"]
[BlackElo "2289"]
[TimeControl "600+2"]
[EndTime "10:51:17 PDT"]
[Termination "Belka1989 won by checkmate"]

1. e4 {[%clk 0:10:01.9]} 1... c5 {[%clk 0:09:58.4]} 2. Nf3 {[%clk 0:10:02.3]}
2... d6 {[%clk 0:09:59]} 3. d4 {[%clk 0:10:03.1]} 3... cxd4 {[%clk 0:10:00.9]}
4. Nxd4 {[%clk 0:10:04.4]} 4... Nf6 {[%clk 0:10:02.1]} 5. Nc3 {[%clk 0:10:06]}
5... a6 {[%clk 0:10:02.2]} 6. h3 {[%clk 0:10:07.3]} 6... e5 {[%clk 0:10:02.1]}
7. Nde2 {[%clk 0:10:08.3]} 7... h5 {[%clk 0:10:02.7]} 8. Bg5 {[%clk 0:10:09.2]}
8... Be6 {[%clk 0:10:02.3]} 9. Ng3 {[%clk 0:10:10]} 9... g6 {[%clk 0:09:16]} 10.
Be2 {[%clk 0:09:46.5]} 10... Be7 {[%clk 0:09:06.1]} 11. Qd2 {[%clk 0:09:40.3]}
11... Nbd7 {[%clk 0:09:02]} 12. O-O-O {[%clk 0:09:37.3]} 12... Rc8 {[%clk
0:08:45.6]} 13. Kb1 {[%clk 0:09:35.1]} 13... Qa5 {[%clk 0:08:22.4]} 14. Bf3
{[%clk 0:09:22.7]} 14... h4 {[%clk 0:07:12.9]} 15. Nge2 {[%clk 0:09:22.5]} 15...
b5 {[%clk 0:05:45.7]} 16. Nc1 {[%clk 0:09:20.5]} 16... b4 {[%clk 0:05:35.1]} 17.
N3e2 {[%clk 0:09:08]} 17... Qb6 {[%clk 0:04:39.6]} 18. Nd3 {[%clk 0:09:00.4]}
18... a5 {[%clk 0:04:38]} 19. c3 {[%clk 0:08:50.5]} 19... bxc3 {[%clk
0:04:16.6]} 20. Nxc3 {[%clk 0:08:51]} 20... O-O {[%clk 0:04:14.5]} 21. Bxh4
{[%clk 0:08:43.6]} 21... Nxe4 {[%clk 0:04:01.5]} 22. Bxe4 {[%clk 0:08:15.2]}
22... Bxh4 {[%clk 0:04:01.4]} 23. Nd5 {[%clk 0:08:15.2]} 23... Qd4 {[%clk
0:03:47.6]} 24. Qe3 {[%clk 0:08:15.7]} 24... Bxd5 {[%clk 0:03:27.4]} 25. Qxd4
{[%clk 0:08:16.1]} 25... Bxa2+ {[%clk 0:03:27.2]} 26. Kxa2 {[%clk 0:08:17.2]}
26... exd4 {[%clk 0:03:29.1]} 27. g3 {[%clk 0:08:15.3]} 27... Bf6 {[%clk
0:03:27.3]} 28. h4 {[%clk 0:08:14.4]} 28... Nc5 {[%clk 0:03:20.7]} 29. Nxc5
{[%clk 0:07:58.6]} 29... dxc5 {[%clk 0:03:15.1]} 30. g4 {[%clk 0:07:57.9]} 30...
c4 {[%clk 0:03:10.8]} 31. h5 {[%clk 0:07:53.2]} 31... g5 {[%clk 0:03:08.8]} 32.
f4 {[%clk 0:07:45.7]} 32... d3 {[%clk 0:02:49.8]} 33. fxg5 {[%clk 0:07:43.8]}
33... Bxg5 {[%clk 0:02:51.7]} 34. h6 {[%clk 0:07:45]} 34... Kh8 {[%clk
0:02:42.1]} 35. Rh5 {[%clk 0:07:43.4]} 35... f6 {[%clk 0:02:39.2]} 36. Rh3
{[%clk 0:07:33.6]} 36... Rb8 {[%clk 0:02:23.8]} 37. Bd5 {[%clk 0:07:26.8]} 37...
Rb4 {[%clk 0:02:22.3]} 38. Rb1 {[%clk 0:06:52.6]} 38... Rfb8 {[%clk 0:02:09.7]}
39. Rhh1 {[%clk 0:06:41.7]} 39... Ra4# {[%clk 0:02:10]} 0-1